[Event "EYTCC Open U18 2018"]
[Site "Bad Blankeburg"]
[Date "2018.07.18"]
[Round "7"]
[White "Szustakowski, Antoni"]
[Black "Papunidi, Matvey"]
[Result "0-1"]
[ECO "D10"]
[WhiteElo "2330"]
[BlackElo "1913"]
[Annotator "NA"]
[PlyCount "146"]
[EventDate "2018.07.12"]
[EventType "swiss"]
[EventCountry "GER"]
[SourceTitle "playchess.com"]
[Source "ChessBase"]
[SourceQuality "1"]
[WhiteTeam "Poland"]
[BlackTeam "Belarus"]
[WhiteTeamCountry "POL"]
[BlackTeamCountry "BLR"]
[TimeControl "40/5400+30:1800+30"]

1. d4 {[%emt 0:00:00]} d5 {[%emt 0:00:00]} 2. c4 {[%emt 0:00:00]} c6 {[%emt 0:00:00]} 3. Nc3 {[%emt 0:00:00]} dxc4 {[%emt 0:00:11]} 4. e3 {[%emt 0:00:07]} b5 {[%emt 0:00:13]} 5. a4 {[%emt 0:00:04]} b4 {[%emt 0:00:09]} 6. Ne4 {[%emt 0:00:10] D10: Slav Defence: 3 cxd5 (without early Nf3) and 3 Nc3} Qd5 {[%emt 0:00:17]} 7. Ng3 {[%emt 0:00:12]} (7. Nd2 c3 8. bxc3 bxc3 9. Nb1 Qa5 10. Qc2 Na6 11. Qxc3 Qxc3+ 12. Nxc3 Nb4 13. Rb1 a5 {1-0 (79) Wojtaszek,R (2750)-Bartel,M (2604) Warsaw 2018}) 7... Nf6 {[%emt 0:00:50]} 8. Be2 {[%emt 0:00:09]} e6 {[%emt 0:00:56]} 9. e4 {[%emt 0:00:07]} Nxe4 {[%emt 0:00:31]} 10. Bf3 {[%emt 0:00:04]} f5 {[%emt 0:00:05]} 11. Qe2 {[%emt 0:00:06]} b3 {[%emt 0:37:59]} (11... Qxd4 12. Nxe4 fxe4 13. Bxe4 $11) (11... Ba6 $11) 12. Nxe4 {[%emt 0:03:52]} fxe4 {[%emt 0:00:06]} 13. Bxe4 {[%emt 0:00:06] [#]} Bb4+ $146 {[%emt 0:00:08]} ({Predecessor:} 13... Qa5+) 14. Kf1 {[%emt 0:00:04]} Qxd4 {[%emt 0:10:38]} 15. Nf3 {[%emt 0:01:49]} Qd6 {[%emt 0:01:52]} 16. g3 {[%emt 0:17:46]} c3 {[%emt 0:14:27]} 17. Kg2 {[%emt 0:02:44]} Ba6 {[%emt 0:01:20]} 18. Qe3 {[%emt 0:00:06]} O-O {[%emt 0:01:28]} 19. bxc3 {[%emt 0:05:02]} Bc5 {[%emt 0:00:03]} 20. Qg5 {[%emt 0:00:08]} Nd7 {[%emt 0:02:02]} 21. Bf4 {[%emt 0:06:25]} e5 {[%emt 0:02:07]} 22. Rad1 {[%emt 0:17:50]} Qe6 {[%emt 0:08:20]} 23. Rhe1 {[%emt 0:04:50]} h6 {[%emt 0:09:31]} 24. Qh5 {[%emt 0:05:01]} Nf6 {[%emt 0:01:00]} ({Not} 24... exf4 $2 {[#]} 25. Bh7+ $1 {[%mdl 512]} Kxh7 26. Rxe6 $18) 25. Qg6 {[%emt 0:00:03]} (25. Bf5 $1 $11 Qe8 26. Qh3) 25... exf4 {[%emt 0:00:16]} 26. Bf5 $1 {[%emt 0:03:21]} Qe8 {[%emt 0:02:50]} ({Much worse is} 26... Qf7 $6 27. Be6 $16) (26... Qxe1 $5 27. Rxe1 Bc4 $11) 27. Rxe8 {[%emt 0:00:18]} Raxe8 {[%emt 0:00:42]} 28. Bd3 {[%emt 0:05:57]} Rd8 {[%emt 0:03:56]} 29. c4 {[%emt 0:07:10]} Kh8 {[%emt 0:01:57]} 30. Nh4 {[%emt 0:10:30]} Bc8 {[%emt 0:00:32]} 31. Nf5 {[%emt 0:00:37]} Bxf5 {[%emt 0:00:23]} 32. Qxf5 {[%emt 0:00:04]} Bd4 {[%emt 0:00:25]} 33. g4 {[%emt 0:01:21]} f3+ {[%emt 0:00:42]} 34. Kg1 {[%emt 0:01:02]} Rde8 {[%emt 0:00:22]} 35. h4 {[%emt 0:01:32]} Re5 $1 {[%emt 0:00:37]} ({Don't go for} 35... Ne4 $2 36. Qg6 $18) 36. Qf4 {[%emt 0:00:04]} c5 {[%emt 0:00:18]} 37. g5 {[%emt 0:00:05]} hxg5 {[%emt 0:00:43]} 38. hxg5 {[%emt 0:00:29]} Nh7 {[%emt 0:00:07]} 39. Qh4 {[%emt 0:01:20]} Rxg5+ {[%emt 0:00:06]} 40. Kf1 {[%emt 0:05:04]} g6 {[%emt 0:00:25]} 41. Qe4 {[%emt 0:30:57]} (41. Bb1 $142 Rh5 42. Rxd4 cxd4 43. Qxd4+ Kg8 44. Ke1 Rh1+ 45. Kd2 Rxb1 46. Kc3) 41... Rh5 {[%emt 0:31:19]} 42. Kg1 {[%emt 0:02:39]} Rg5+ {[%emt 0:00:00]} 43. Kf1 {[%emt 0:00:00]} b2 {[%emt 0:00:00]} 44. Bb1 {[%emt 0:00:00]} Kg7 $2 {[%emt 0:00:00]} (44... Rh5 {[%cal Rh5h1]} 45. Kg1 Ng5) 45. Rd3 {[%emt 0:00:00]} Re5 {[%emt 0:00:00]} 46. Qc6 $2 {[%emt 0:00:00]} Rf6 {[%emt 0:00:00]} 47. Qb7+ {[%emt 0:00:00]} Rf7 {[%emt 0:00:00]} 48. Qc6 {[%emt 0:00:00]} Rfe7 {[%emt 0:00:00]} 49. Re3 {[%emt 0:00:00]} Bxe3 {[%emt 0:00:31]} 50. Qxg6+ {[%emt 0:00:00]} Kf8 {[%emt 0:00:03]} 51. fxe3 {[%emt 0:00:00]} Rxe3 {[%emt 0:01:04]} 52. Qh6+ {[%emt 0:00:00]} Kg8 {[%emt 0:03:36]} 53. Bxh7+ {[%emt 0:00:00]} Rxh7 {[%emt 0:00:04]} 54. Qg5+ {[%emt 0:00:00]} Rg7 {[%emt 0:00:45]} 55. Qd8+ {[%emt 0:00:00]} Kf7 {[%emt 0:00:37]} 56. Qd5+ {[%emt 0:00:00]} Re6 {[%emt 0:00:43]} 57. Qb7+ {[%emt 0:00:00]} Kg6 {[%emt 0:00:23]} 58. Qxb2 {[%emt 0:00:00]} Rge7 {[%emt 0:00:30]} 59. Qb8 {[%emt 0:00:00]} Kf5 {[%emt 0:00:22]} 60. Qf8+ {[%emt 0:00:00]} Kg4 {[%emt 0:00:12]} 61. Qg8+ {[%emt 0:00:00]} Kf4 {[%emt 0:00:30]} 62. Qf8+ {[%emt 0:00:00]} Ke3 {[%emt 0:00:21]} 63. Qf5 {[%emt 0:00:00]} Re5 {[%emt 0:00:37]} 64. Qc2 {[%emt 0:00:00]} Kf4 {[%emt 0:00:18]} 65. Qh2+ {[%emt 0:00:00]} Kg4 {[%emt 0:01:02]} 66. Qg1+ {[%emt 0:00:00]} Kf5 {[%emt 0:00:14]} 67. Qg8 {[%emt 0:00:00]} Ke4 {[%emt 0:00:58]} 68. Kf2 {[%emt 0:00:00]} Kd3 {[%emt 0:00:25]} 69. Kxf3 {[%emt 0:00:00]} Re3+ {[%emt 0:00:13]} 70. Kg2 {[%emt 0:00:00]} Re2+ {[%emt 0:00:06]} 71. Kh1 {[%emt 0:00:00]} Re1+ {[%emt 0:00:08]} 72. Kh2 {[%emt 0:00:00]} R7e2+ {[%emt 0:00:06]} 73. Kh3 {[%emt 0:00:00]} Rh1+ {[%emt 0:00:05]} 0-1

[Event "EYTCC Open U18 2018"]
[Site "Bad Blankeburg"]
[Date "2018.07.18"]
[Round "7"]
[White "Amon, Nejc"]
[Black "Stoleriu, George"]
[Result "0-1"]
[ECO "C04"]
[WhiteElo "2295"]
[BlackElo "2347"]
[Annotator "NA"]
[PlyCount "105"]
[EventDate "2018.07.12"]
[EventType "swiss"]
[EventCountry "GER"]
[SourceTitle "playchess.com"]
[Source "ChessBase"]
[SourceQuality "1"]
[WhiteTeam "Slovenia"]
[BlackTeam "Romania"]
[WhiteTeamCountry "SLO"]
[BlackTeamCountry "ROU"]
[TimeControl "40/5400+30:1800+30"]

1. e4 {[%emt 0:00:00]} e6 {[%emt 0:00:00]} 2. d4 {[%emt 0:00:00]} d5 {[%emt 0:00:00]} 3. Nd2 {[%emt 0:00:00]} Nc6 {[%emt 0:00:00]} 4. Ngf3 {[%emt 0:00:14]} Nf6 {[%emt 0:00:00]} 5. e5 {[%emt 0:00:10]} Nd7 {[%emt 0:00:05]} 6. Be2 {[%emt 0:00:16]} f6 {[%emt 0:00:21]} 7. exf6 {[%emt 0:00:15]} Qxf6 {[%emt 0:00:05]} 8. Nf1 {[%emt 0:00:10]} Bd6 {[%emt 0:03:38]} 9. Ne3 {[%emt 0:00:11]} O-O {[%emt 0:01:20]} 10. O-O {[%emt 0:00:13]} Qg6 {[%emt 0:01:08]} 11. g3 {[%emt 0:00:22]} Nf6 {[%emt 0:02:51]} 12. Nh4 {[%emt 0:00:55] C04: French Tarrasch: 3...Nc6} Qe8 {[%emt 0:11:50]} 13. f4 {[%emt 0:00:46]} Bd7 {[%emt 0:00:21]} 14. Ng4 {[%emt 0:11:37]} Ne7 {[%emt 0:08:21]} 15. Re1 {[%emt 0:10:23]} Ne4 $146 {[%emt 0:31:00]} ({Predecessor:} 15... c5 16. c3 cxd4 17. cxd4 Qd8 18. Ne5 Bxe5 19. fxe5 Ne4 {0-1 (28) Huenerkopf,H (2275)-Hug,W (2455) Lugano 1986}) 16. Bd3 {[%emt 0:11:47]} Nf5 {[%emt 0:01:40]} 17. Nf3 {[%emt 0:00:34]} c5 {[%emt 0:01:11]} 18. c3 {[%emt 0:05:54]} cxd4 {[%emt 0:01:32]} 19. cxd4 {[%emt 0:02:47]} Bb4 {[%emt 0:00:51]} 20. Re2 {[%emt 0:10:43]} Bb5 {[%emt 0:02:57]} 21. Nf2 {[%emt 0:01:08]} Nfd6 {[%emt 0:11:04]} 22. Qb3 {[%emt 0:10:08]} Bxd3 {[%emt 0:01:50]} 23. Nxd3 {[%emt 0:01:27]} Ba5 {[%emt 0:00:34]} 24. Bd2 {[%emt 0:08:10]} Qh5 {[%emt 0:04:34]} 25. Bxa5 {[%emt 0:02:26]} Qxf3 {[%emt 0:00:09]} 26. Rae1 {[%emt 0:00:12]} Rfe8 {[%emt 0:03:53]} 27. Bc7 {[%emt 0:09:03]} Nc4 {[%emt 0:05:23]} 28. Nc5 {[%emt 0:05:37]} Qxb3 {[%emt 0:01:40]} 29. Nxb3 {[%emt 0:00:47]} Rac8 {[%emt 0:00:23]} 30. Ba5 {[%emt 0:02:45]} b6 {[%emt 0:00:26]} 31. Bc3 {[%emt 0:00:58]} a5 {[%emt 0:00:16]} 32. Nd2 {[%emt 0:02:42]} Ncxd2 {[%emt 0:01:24]} 33. Bxd2 {[%emt 0:00:06]} Rc4 {[%emt 0:00:24]} 34. Be3 {[%emt 0:00:48]} Rec8 {[%emt 0:00:16]} 35. Kf1 {[%emt 0:01:57]} Kf7 {[%emt 0:01:09]} 36. Rd1 {[%emt 0:00:34]} a4 {[%emt 0:01:50]} 37. Rde1 {[%emt 0:01:25]} h5 {[%emt 0:00:09]} 38. Kg2 {[%emt 0:00:26]} b5 {[%emt 0:00:41]} 39. Kf3 {[%emt 0:00:39]} b4 {[%emt 0:00:50]} 40. Rf1 {[%emt 0:00:50]} Kf6 {[%emt 0:02:06]} 41. Rfe1 {[%emt 0:30:16]} a3 {[%emt 0:31:41]} 42. Rg2 {[%emt 0:00:00]} Ra8 {[%emt 0:00:00]} 43. Rb1 {[%emt 0:00:00]} axb2 {[%emt 0:00:00]} 44. Rbxb2 {[%emt 0:00:00]} Ra3 {[%emt 0:00:00]} 45. Rge2 {[%emt 0:00:00]} Rxd4 {[%emt 0:00:00]} 46. Kg2 {[%emt 0:00:00]} Rc4 {[%emt 0:00:00]} 47. Bf2 {[%emt 0:00:00]} Kf5 {[%emt 0:00:00]} 48. Be1 {[%emt 0:00:00]} Ra4 {[%emt 0:00:00]} 49. Kf3 {[%emt 0:00:00]} Kf6 {[%emt 0:00:00]} 50. Re3 {[%emt 0:00:00]} Nc3 $19 {[%emt 0:00:00]} 51. Rxb4 {[%emt 0:00:00]} Raxb4 {[%emt 0:00:00]} 52. Bxc3+ {[%emt 0:00:00]} d4 {[%emt 0:00:00]} 53. Ke4 {Ke5+} 0-1

[Event "EYTCC Open U18 2018"]
[Site "Bad Blankeburg"]
[Date "2018.07.18"]
[Round "7"]
[White "Vasiesiu, Victor"]
[Black "Stevanic, David"]
[Result "0-1"]
[ECO "C50"]
[WhiteElo "2295"]
[BlackElo "2253"]
[Annotator "NA"]
[PlyCount "94"]
[EventDate "2018.07.12"]
[EventType "swiss"]
[EventCountry "GER"]
[SourceTitle "playchess.com"]
[Source "ChessBase"]
[SourceQuality "1"]
[WhiteTeam "Romania"]
[BlackTeam "Slovenia"]
[WhiteTeamCountry "ROU"]
[BlackTeamCountry "SLO"]
[TimeControl "40/5400+30:1800+30"]

1. e4 {[%emt 0:00:00]} e5 {[%emt 0:00:00]} 2. Nf3 {[%emt 0:00:00]} Nc6 {[%emt 0:00:00]} 3. Bc4 {[%emt 0:00:00]} Bc5 {[%emt 0:00:00]} 4. O-O {[%emt 0:00:00]} Nf6 {[%emt 0:00:02]} 5. d3 {[%emt 0:00:00]} O-O {[%emt 0:00:35]} 6. Bg5 {[%emt 0:00:01]} h6 {[%emt 0:00:19]} 7. Bh4 {[%emt 0:00:05]} Be7 {[%emt 0:00:08] C50: Hungarian Defence and Giuoco Pianissimo} 8. Bg3 {[%emt 0:00:03]} d6 {[%emt 0:00:42]} 9. a4 {[%emt 0:00:04]} a5 {[%emt 0:01:18]} 10. c3 {[%emt 0:05:22]} (10. h3 Nd7 11. Re1 Kh8 12. c3 Nb6 13. Bb3 f5 14. exf5 Bxf5 {½-½ (25) Caruana,F (2808)-Aronian,L (2793) Stavanger 2017}) 10... Bg4 $146 {[%emt 0:01:43]} ({Predecessor:} 10... Be6 11. Nbd2 Nh5 12. Nxe5 Nxe5 13. Bxe5 Bxc4 14. Nxc4 dxe5 15. Qxh5 Qxd3 16. Nxe5 Qxe4 {1-0 (28) Radovanovic,N (2438)-Stevanic,D (2297) Veliko Gradiste 2018}) 11. h3 {[%emt 0:01:19]} Bh5 {[%emt 0:00:38]} 12. Nbd2 {[%emt 0:01:44]} Nd7 {[%emt 0:03:48]} 13. Qc2 {[%emt 0:07:15]} Nb6 {[%emt 0:00:51]} 14. Bb3 {[%emt 0:10:49]} Bf6 {[%emt 0:00:26]} 15. Rae1 {[%emt 0:00:28]} Re8 {[%emt 0:03:23]} 16. Nh2 {[%emt 0:06:29]} Bh4 {[%emt 0:13:08]} 17. Bxh4 {[%emt 0:17:35]} Qxh4 {[%emt 0:00:09]} 18. Re3 {[%emt 0:00:07]} Rad8 {[%emt 0:04:57]} 19. g3 {[%emt 0:01:01]} Qe7 {[%emt 0:03:11]} 20. Nc4 {[%emt 0:04:48]} Nxc4 {[%emt 0:05:40]} 21. Bxc4 {[%emt 0:00:17]} Kh8 {[%emt 0:01:30]} 22. Qb3 {[%emt 0:01:58]} Rb8 {[%emt 0:04:15]} 23. Qb5 {[%emt 0:04:07]} f6 {[%emt 0:03:26]} 24. Bd5 {[%emt 0:00:58]} Bf7 {[%emt 0:01:08]} 25. Re2 {[%emt 0:00:19]} Bxd5 {[%emt 0:10:01]} 26. exd5 {[%emt 0:01:27]} Nd8 {[%emt 0:00:47]} 27. Qxa5 {[%emt 0:01:00]} Nf7 {[%emt 0:00:30]} 28. Qb4 {[%emt 0:05:27]} f5 {[%emt 0:01:28]} 29. f4 {[%emt 0:04:28]} Qd7 {[%emt 0:00:59]} 30. Nf3 {[%emt 0:05:30]} g5 {[%emt 0:15:33]} ({Black should play} 30... c5 31. Qb5 Qxb5 32. axb5 exf4 33. Rxe8+ Rxe8) 31. Rfe1 {[%emt 0:04:03]} gxf4 {[%emt 0:09:09]} 32. gxf4 {[%emt 0:00:09]} Rg8+ {[%emt 0:00:06]} 33. Kh2 {[%emt 0:00:31]} Rg7 {[%emt 0:00:25]} 34. c4 {[%emt 0:08:43]} Rbg8 {[%emt 0:02:28]} 35. fxe5 {[%emt 0:01:17]} dxe5 {[%emt 0:00:54]} 36. Qc3 {[%emt 0:00:43]} f4 {[%emt 0:10:00]} 37. Nxe5 {[%emt 0:00:59]} Qf5 {[%emt 0:00:39]} 38. Nxf7+ {[%emt 0:01:13]} Qxf7 {[%emt 0:00:05]} 39. Qe5 {[%emt 0:01:16]} f3 {[%emt 0:02:50]} 40. Rf2 {[%emt 0:02:03]} Qg6 {[%emt 0:00:54]} 41. Qf4 {[%emt 0:36:04]} ({Better is} 41. Kh1 $16) 41... Rf7 {[%emt 0:09:19]} 42. Qd4+ $2 {[%emt 0:00:00]} (42. Qe5+ $11 {and White is okay.} Rgg7 $11 43. Qe8+ Rg8 44. Qe5+ Rgg7 45. Qe8+ Rg8 46. Qe3) 42... Rgg7 {[%emt 0:05:36]} 43. Qh4 {[%emt 0:00:00] [#]} Rf5 $1 {[%emt 0:01:22]} 44. Qd8+ $19 {[%emt 0:00:00]} Rg8 {[%emt 0:06:19]} 45. Qh4 {[%emt 0:00:00]} Rg5 {[%emt 0:01:11]} 46. Qd4+ {[%emt 0:00:00]} Rg7 {[%emt 0:00:07]} 47. Qxg7+ {[%emt 0:00:00]} Qxg7 {[%emt 0:00:22]} 0-1

[Event "EYTCC Open U18 2018"]
[Site "Bad Blankeburg"]
[Date "2018.07.18"]
[Round "7"]
[White "Roseneck, Jonas"]
[Black "Demirbas, Emre"]
[Result "1-0"]
[ECO "B40"]
[WhiteElo "2182"]
[BlackElo "1815"]
[Annotator "NA"]
[PlyCount "111"]
[EventDate "2018.07.12"]
[EventType "swiss"]
[EventCountry "GER"]
[SourceTitle "playchess.com"]
[Source "ChessBase"]
[SourceQuality "1"]
[WhiteTeam "Germany"]
[BlackTeam "Turkey"]
[WhiteTeamCountry "GER"]
[BlackTeamCountry "TUR"]
[TimeControl "40/5400+30:1800+30"]

1. e4 {[%emt 0:00:00]} c5 {[%emt 0:00:21]} 2. Nf3 {[%emt 0:00:00]} e6 {[%emt 0:00:05]} 3. d4 {[%emt 0:00:00]} cxd4 {[%emt 0:00:04]} 4. Nxd4 {[%emt 0:00:00]} Nf6 {[%emt 0:00:03]} 5. Nc3 {[%emt 0:00:00]} Nc6 {[%emt 0:00:02]} 6. Nxc6 {[%emt 0:00:00]} bxc6 {[%emt 0:00:04]} 7. e5 {[%emt 0:00:05]} Nd5 {[%emt 0:00:02]} 8. Ne4 {[%emt 0:00:14]} Qc7 {[%emt 0:00:07]} 9. f4 {[%emt 0:00:04]} Qb6 {[%emt 0:01:06]} 10. c4 {[%emt 0:00:08]} Ne3 {[%emt 0:04:47]} 11. Qd3 {[%emt 0:00:12]} Bb4+ {[%emt 0:00:18]} 12. Bd2 {[%emt 0:00:45] B45: Sizilianisch (Klassisches System)} O-O {[%emt 0:00:18]} 13. Rc1 {[%emt 0:00:26]} f5 {[%emt 0:13:57]} (13... Bxd2+ 14. Qxd2 Nxf1 15. Rxf1 c5 16. Rc3 d5 17. cxd5 exd5 18. Nxc5 d4 19. Qxd4 Qxb2 {½-½ (51) Savchenko,B (2585)-Pridorozhni,A (2565) Sochi 2017}) 14. Nf2 $146 {[%emt 0:09:17]} ({Vorgänger:} 14. exf6 Bxd2+ 15. Qxd2 Rb8 16. Rc3 Nxf1 17. Rxf1 Qxb2 18. fxg7 Qxd2+ 19. Kxd2 Kxg7 {1-0 (39) Bachmann,W (2132)-Gruhn,T (2034) GER email 2008}) 14... Ng4 {[%emt 0:10:20]} 15. Nd1 {[%emt 0:14:34]} d6 {[%emt 0:07:21]} 16. h3 {[%emt 0:17:31]} Nh6 {[%emt 0:09:31]} 17. Bxb4 {[%emt 0:08:56]} Qxb4+ {[%emt 0:00:25]} 18. Qc3 {[%emt 0:00:01]} a5 {[%emt 0:07:25]} 19. Nf2 {[%emt 0:09:26]} dxe5 {[%emt 0:06:27]} 20. fxe5 {[%emt 0:00:12]} Bb7 {[%emt 0:01:59]} 21. Nd3 {[%emt 0:03:50]} Qe7 {[%emt 0:00:46]} 22. Qd4 {[%emt 0:00:26]} f4 {[%emt 0:04:07]} 23. Be2 {[%emt 0:11:02]} Rad8 {[%emt 0:06:41]} 24. Qf2 {[%emt 0:04:15]} Nf5 {[%emt 0:08:03]} 25. Qxf4 {[%emt 0:06:29]} Nd4 {[%emt 0:00:57]} 26. Qg4 {[%emt 0:00:25]} Nxe2 {[%emt 0:01:09]} 27. Kxe2 {[%emt 0:00:12]} c5 {[%emt 0:01:30]} 28. Rhf1 {[%emt 0:01:37]} Rf5 {[%emt 0:04:40]} 29. Rxf5 {[%emt 0:04:27]} exf5 {[%emt 0:00:01]} 30. Qxf5 {[%emt 0:00:46]} Rd4 {[%emt 0:02:27]} 31. Nf2 {[%emt 0:02:13]} g6 {[%emt 0:02:35]} 32. Qf6 {[%emt 0:01:27]} Qxf6 {[%emt 0:00:27]} 33. exf6 {[%emt 0:00:01]} Bxg2 {[%emt 0:00:15]} 34. Rg1 {[%emt 0:00:25]} Be4 {[%emt 0:01:08]} 35. Rg4 {[%emt 0:01:11]} Bf5 {[%emt 0:00:51]} 36. Rxd4 {[%emt 0:00:58]} cxd4 {[%emt 0:00:00]} 37. h4 {[%emt 0:04:00]} Kf7 {[%emt 0:00:04]} 38. Nd3 {[%emt 0:00:11]} Be6 {[%emt 0:01:25]} 39. b3 {[%emt 0:02:05]} Kxf6 {[%emt 0:00:34]} 40. Nc5 {[%emt 0:01:35]} Bc8 {[%emt 0:02:33]} 41. a3 {[%emt 0:06:25]} h6 {[%emt 0:03:30]} 42. b4 {[%emt 0:01:47]} axb4 {[%emt 0:00:04]} 43. axb4 {[%emt 0:00:01]} Ke5 {[%emt 0:01:16]} 44. b5 {[%emt 0:02:05]} Bf5 {[%emt 0:01:33]} 45. Nb3 {[%emt 0:02:39]} g5 {[%emt 0:03:05]} 46. hxg5 {[%emt 0:03:09]} hxg5 {[%emt 0:00:28]} 47. b6 {[%emt 0:00:04]} d3+ 48. Ke3 {[%emt 0:01:13]} Kd6 {[%emt 0:03:59]} 49. c5+ {[%emt 0:00:01]} Kd7 {[%emt 0:00:11]} 50. Nd4 {[%emt 0:00:05]} Bh3 {[%emt 0:00:49]} 51. Kxd3 {[%emt 0:03:37]} Bg2 {[%emt 0:02:10]} 52. Ke3 {[%emt 0:00:16]} Bd5 {[%emt 0:00:49]} 53. Kf2 {[%emt 0:00:06]} Bf7 {[%emt 0:00:48]} 54. Kg3 {[%emt 0:00:10]} Bh5 {[%emt 0:00:11]} 55. Nf3 {[%emt 0:02:09]} Bf7 {[%emt 0:01:18]} 56. Ne5+ {[%emt 0:00:35]} 1-0

[Event "EYTCC Open U18 2018"]
[Site "Bad Blankeburg"]
[Date "2018.07.18"]
[Round "7"]
[White "Kesgin, Halit Kaan"]
[Black "Schmidek, Emil"]
[Result "0-1"]
[ECO "C95"]
[WhiteElo "2049"]
[BlackElo "2376"]
[Annotator "NA"]
[PlyCount "134"]
[EventDate "2018.07.12"]
[EventType "swiss"]
[EventCountry "GER"]
[SourceTitle "playchess.com"]
[Source "ChessBase"]
[SourceQuality "1"]
[WhiteTeam "Turkey"]
[BlackTeam "Germany"]
[WhiteTeamCountry "TUR"]
[BlackTeamCountry "GER"]
[TimeControl "40/5400+30:1800+30"]

1. e4 {[%emt 0:00:00]} e5 {[%emt 0:00:00]} 2. Nf3 {[%emt 0:00:00]} Nc6 {[%emt 0:00:00]} 3. Bb5 {[%emt 0:00:00]} a6 {[%emt 0:00:00]} 4. Ba4 {[%emt 0:00:00]} Nf6 {[%emt 0:00:00]} 5. O-O {[%emt 0:00:03]} Be7 {[%emt 0:00:00]} 6. Re1 {[%emt 0:00:19]} b5 {[%emt 0:00:00]} 7. Bb3 {[%emt 0:00:09]} d6 {[%emt 0:00:00]} 8. c3 {[%emt 0:00:13]} O-O {[%emt 0:00:00]} 9. h3 {[%emt 0:00:18]} Nb8 {[%emt 0:00:14]} 10. d4 {[%emt 0:00:48]} Nbd7 {[%emt 0:00:05]} 11. Nbd2 {[%emt 0:00:47]} Bb7 {[%emt 0:00:06]} 12. Bc2 {[%emt 0:01:30]} Re8 {[%emt 0:00:05]} 13. Nf1 {[%emt 0:00:49]} Bf8 {[%emt 0:00:06]} 14. Ng3 {[%emt 0:00:08]} g6 {[%emt 0:00:03]} 15. Bd2 {[%emt 0:01:45]} Bg7 {[%emt 0:00:42]} 16. Qc1 {[%emt 0:00:36] C95: Closed Ruy Lopez: Breyer Variation with 10 d4} c5 {[%emt 0:09:52]} (16... d5 17. Nxe5 Nxe5 18. dxe5 Nxe4 19. Nxe4 dxe4 20. Bxe4 Bxe4 21. Rxe4 Qd5 22. Qc2 Rxe5 23. Rae1 Rae8 24. Rxe5 Rxe5 25. Rxe5 Bxe5 {½-½ (41) Antipov,M (2582)-Jumabayev,R (2603) Bastia 2017}) 17. d5 {[%emt 0:02:20]} c4 {[%emt 0:02:55]} 18. Bh6 {[%emt 0:03:56]} Bh8 $146 {[%emt 0:25:41]} ({Predecessor:} 18... Nc5 19. Bxg7 Kxg7 20. Qg5 Bc8 21. Nh4 Kh8 22. f4 Nfd7 23. Qxd8 Rxd8 {1-0 (58) Czupor,A (1962)-Toelly,M (1653) Bad Gleichenberg 2013}) 19. Nh4 {[%emt 0:14:05]} Nc5 {[%emt 0:03:49]} 20. Bg5 {[%emt 0:05:30]} Bg7 {[%emt 0:07:05]} 21. Bh6 {[%emt 0:24:09]} Kh8 {[%emt 0:11:12]} 22. Bxg7+ {[%emt 0:01:42]} Kxg7 23. Re3 {[%emt 0:08:08]} Bc8 {[%emt 0:04:21]} 24. Nf3 {[%emt 0:03:40]} Bd7 {[%emt 0:08:16]} 25. b4 {[%emt 0:00:36]} cxb3 {[%emt 0:00:25]} 26. axb3 {[%emt 0:00:04]} a5 {[%emt 0:00:47]} 27. Nd2 {[%emt 0:01:13]} Qc7 {[%emt 0:01:49]} 28. Rf3 {[%emt 0:01:13]} h6 {[%emt 0:03:57]} 29. Ndf1 {[%emt 0:02:06]} Rec8 {[%emt 0:08:07]} 30. Rxf6 {[%emt 0:03:31]} Kxf6 {[%emt 0:00:10]} 31. Qxh6 {[%emt 0:00:03]} Rh8 {[%emt 0:00:46]} 32. Nh5+ {[%emt 0:00:08]} Ke7 {[%emt 0:00:08]} 33. Qg5+ {[%emt 0:00:03]} Kf8 {[%emt 0:00:16]} 34. Nf6 {[%emt 0:00:31]} Qd8 {[%emt 0:01:28]} 35. Ng3 {[%emt 0:00:07]} Be8 {[%emt 0:03:38]} 36. f4 {[%emt 0:01:03]} exf4 {[%emt 0:03:43]} 37. Qxf4 {[%emt 0:00:25]} Qe7 {[%emt 0:01:16]} 38. b4 {[%emt 0:01:52]} Nd7 {[%emt 0:01:00]} 39. Nxd7+ {[%emt 0:00:58]} Bxd7 {[%emt 0:00:21]} 40. bxa5 {[%emt 0:00:08]} Kg7 {[%emt 0:00:00]} 41. Ne2 Rhc8 42. Bd3 {[%emt 0:09:43]} Qe5 {[%emt 0:16:12]} 43. Qe3 {[%emt 0:03:09]} Ra6 {[%emt 0:03:02]} 44. Qd4 {[%emt 0:03:38]} Qxd4+ {[%emt 0:02:51]} 45. Nxd4 {[%emt 0:00:09]} Rxc3 {[%emt 0:00:06]} 46. Bxb5 {[%emt 0:00:04]} (46. Bf1 $15) 46... Bxb5 {[%emt 0:00:37]} 47. Nxb5 {[%emt 0:00:08]} Rc5 {[%emt 0:00:52]} 48. Rb1 {[%emt 0:01:47] [#]} Kf6 $1 {[%emt 0:03:45]} 49. Nd4 {[%emt 0:00:36]} Rcxa5 {[%emt 0:01:53]} 50. Rf1+ {[%emt 0:01:07]} Kg7 51. Nc6 {[%emt 0:01:39]} Rc5 {[%emt 0:02:19]} 52. Nd8 {[%emt 0:00:54]} Ra7 {[%emt 0:01:31]} 53. Rf4 {[%emt 0:02:54]} Rc2 {[%emt 0:00:35]} 54. Kh2 {[%emt 0:00:52]} Raa2 {[%emt 0:01:16]} 55. Rg4 {[%emt 0:00:05]} Re2 {[%emt 0:00:15]} 56. Nb7 {[%emt 0:00:10]} Ra6 {[%emt 0:00:27]} 57. Kg3 {[%emt 0:00:24]} Kf8 {[%emt 0:02:37]} 58. Nd8 {[%emt 0:00:42]} Raa2 {[%emt 0:01:15]} 59. Kh2 {[%emt 0:00:17]} Ke8 {[%emt 0:00:54]} 60. Nc6 {[%emt 0:00:25]} Ra4 {[%emt 0:00:31]} 61. Rh4 {[%emt 0:00:32]} Kf8 {[%emt 0:00:21]} 62. Kg3 {[%emt 0:01:02]} Raxe4 {[%emt 0:01:05]} 63. Rxe4 {[%emt 0:00:03]} Rxe4 {[%emt 0:00:10]} 64. Kf3 {[%emt 0:00:04]} Re1 {[%emt 0:00:12]} 65. g3 {[%emt 0:00:17]} Kg7 66. Kf4 Rd1 {[%emt 0:00:32]} 67. Ke4 $19 {[%emt 0:00:12]} f5+ {[%emt 0:00:11] Kd4} 0-1